[Event "16th Serbian-ch Women 2022"]
[Site "Bajina Basta"]
[Date "2022.12.13"]
[Round "8.3"]
[White "Grozdanovic, Anastasia"]
[Black "Gajcin, Marina"]
[Result "1/2-1/2"]
[ECO "D40"]
[WhiteElo "1870"]
[BlackElo "2219"]
[Annotator "TA"]
[PlyCount "46"]
[EventDate "2022.12.06"]
[EventType "tourn"]
[EventCountry "SRB"]
[SourceTitle "playchess.com"]
[Source "ChessBase"]
[SourceQuality "1"]
[TimeControl "40/5400+30:1800+30"]

{[%evp 15,46,14,2,1,15,-6,-3,-21,15,2,27,17,31,31,29,21,20,-29,25,35,50,18,55,34,92,73,57,-3,4,2,1,-20,0]} 1. d4 {[%emt 0:00:03]} Nf6 {[%emt 0:00:09]} 2. c4 {[%emt 0:00:16]} e6 {[%emt 0:00:08]} 3. Nf3 {[%emt 0:00:26]} c5 {[%emt 0:00:19]} 4. e3 {[%emt 0:01:58]} d5 {[%emt 0:00:47]} 5. Nc3 {[%emt 0:00:45]} Nc6 {[%emt 0:00:48]} 6. a3 {[%emt 0:01:15]} dxc4 {[%emt 0:02:37]} 7. Bxc4 {[%emt 0:00:55]} a6 {[%emt 0:01:12]} 8. O-O {[%emt 0:03:33]} b5 {[%emt 0:10:57]} 9. Ba2 {[%emt 0:06:27] D40: Queen's Gambit Declined: Semi-Tarrasch with 5 e3.} Bb7 {[%emt 0:04:22]} 10. dxc5 {[%emt 0:05:58]} Bxc5 {[%emt 0:09:28]} 11. Qe2 {[%emt 0:07:13]} Qc7 {[%emt 0:09:17]} 12. b4 {[%emt 0:07:40]} Ba7 {[%emt 0:13:18]} 13. Bb2 {[%emt 0:03:45]} O-O {[%emt 0:14:13]} 14. Rac1 {[%emt 0:06:24] [#]} Bb8 $146 {[%emt 0:02:35][%cal Oc6d4] [#] Strongly threatening ...Nd4!} ({Predecessor:} 14... Rac8 15. Nb1 Qb8 16. Nbd2 Rfd8 17. Ng5 Ne5 18. Rxc8 Rxc8 19. Bb1 h6 20. Nge4 Nxe4 21. Nxe4 Rc4 22. Ng3 Qc7 23. Rd1 g6 24. Qd2 Qc6 25. e4 Qc7 {1-0 (26) Hamad,A (2287)-Mikheev,S (2329) Dresden 2008}) 15. g3 {[%emt 0:00:57]} Qe7 $1 {[%emt 0:03:39]} ({Much less strong is} 15... Ne5 {[#]} 16. Nd5 $1 Qd8 17. Nxe5 $16) 16. Nb1 {[%emt 0:15:52]} (16. Rfd1 $142) 16... Rd8 {[%emt 0:07:03]} ({Black should try} 16... a5) 17. Nbd2 $11 {[%emt 0:04:25]} Ng4 {[%emt 0:05:53]} 18. Rc5 {[%emt 0:06:32][%cal Ob2g7] Prevents Be5.} (18. Bb1 {simplifies} Nge5 19. Nxe5 Bxe5 20. Ne4) 18... h6 {[%emt 0:05:50]} 19. Rfc1 {[%emt 0:04:20]} Na7 {[%emt 0:01:32]} (19... Qd7 $1 $14) 20. h3 {[%emt 0:08:16]} Nf6 {[%emt 0:00:26]} 21. Ne5 {[%emt 0:03:49]} (21. e4 $14) 21... Bd6 {[%emt 0:03:54] The position is equal.} 22. R5c2 {[%emt 0:02:51]} Rac8 {[%emt 0:01:10]} 23. Ng4 {[%emt 0:00:27]} Ne4 {[%emt 0:01:37] Weighted Error Value: White=0.19 (very precise) /Black=0.16 (very precise)} 1/2-1/2

[Event "16th Serbian-ch Women 2022"]
[Site "Bajina Basta"]
[Date "2022.12.13"]
[Round "8.5"]
[White "Bojicic, Andjela"]
[Black "Vujcic, Milena"]
[Result "1-0"]
[ECO "E73"]
[WhiteElo "2117"]
[BlackElo "2029"]
[Annotator "TA"]
[PlyCount "55"]
[EventDate "2022.12.06"]
[EventType "tourn"]
[EventCountry "SRB"]
[SourceTitle "playchess.com"]
[Source "ChessBase"]
[SourceQuality "1"]
[TimeControl "40/5400+30:1800+30"]

{[%evp 9,55,50,70,50,49,40,35,31,29,0,-6,-15,-13,-3,8,0,85,18,27,0,15,1,86,42,461,460,446,435,1194,701,978,573,625,620,29989,29990,2240,903,2289,933,809,865,917,867,29995,29996,29996,29997]} 1. d4 {[%emt 0:00:03]} Nf6 {[%emt 0:00:06]} 2. c4 {[%emt 0:00:04]} g6 {[%emt 0:00:05]} 3. Nc3 {[%emt 0:00:04]} Bg7 {[%emt 0:00:09]} 4. e4 {[%emt 0:00:05]} d6 {[%emt 0:00:04]} 5. Be2 {[%emt 0:00:12]} e5 {[%emt 0:00:36]} 6. d5 {[%emt 0:00:48] E73: King's Indian: Averbakh Variation without 6...c5.} a5 {[%emt 0:00:33] 6...Na6 gains popularity.} 7. Be3 {[%emt 0:01:07]} Na6 {[%emt 0:00:12]} 8. h4 {[%emt 0:02:29] [#] White is slightly better.} h5 $146 {[%emt 0:05:00]} ({Predecessor:} 8... Nc5 9. Bf3 h5 10. Nge2 Ng4 11. Bxc5 dxc5 12. Nc1 Bf6 13. g3 Be7 14. Nd3 Bd6 {0-1 (29) Sabrowski,U (2129)-Muse,D (2407) Berlin 2007}) 9. Qd2 {[%emt 0:04:53]} Ng4 {[%emt 0:13:43]} 10. Bxg4 {[%emt 0:03:33]} hxg4 {[%emt 0:00:05]} 11. O-O-O {[%emt 0:06:20]} f5 {[%emt 0:01:31] White must now prevent ...f4.} 12. f4 {[%emt 0:08:28]} Rxh4 {[%emt 0:14:48] [#]} (12... fxe4 $11 13. fxe5 Bxe5) 13. Nge2 $1 $16 {[%emt 0:17:17] Strongly threatening fxe5.} g5 {[%emt 0:05:19]} 14. Rxh4 {[%emt 0:01:24]} (14. fxg5 Rxh1 15. Rxh1 f4 $17) (14. g3 $5 {[%cal Rg3h4]} gxf4 15. gxf4 $11 (15. Rxh4 fxe3 16. Qxe3 f4 $11)) 14... gxh4 {[%emt 0:00:04]} 15. fxe5 {[%emt 0:06:14]} Bxe5 {[%emt 0:00:22]} (15... dxe5 $11 {remains equal.} 16. Bg5 Bf6 17. Bxf6 Qxf6) 16. Nd4 {[%emt 0:06:17]} (16. exf5 {simplifies} h3 17. Bd4 Bxf5 18. Bxe5 dxe5 19. Ng3) 16... fxe4 $2 {[%emt 0:14:07][%mdl 8192] Black cannot hold the game after this.} ({Black should play} 16... f4 $14 17. Bxf4 Qf6 18. Bxe5 dxe5) 17. Bg5 $18 {[%emt 0:05:36]} Qd7 {[%emt 0:02:42]} 18. Nxe4 {[%emt 0:11:59] aiming for Nf6+.} Qa4 {[%emt 0:17:04]} (18... Qg7 $142 19. Qe3 (19. Bxh4 Bxd4 20. Qxd4 Qxd4 $16) 19... Kf7) 19. Qe2 {[%emt 0:10:31]} (19. Bxh4 Qxc4+ 20. Nc3 Qxd4 21. Qxd4 Bxd4 22. Rxd4 Kf7 $11) 19... Qxa2 {[%emt 0:09:37]} 20. Nf6+ {[%emt 0:00:07] Pair of Knights!} (20. Bxh4 Nb4 21. Nc3 Qa1+ 22. Nb1 c5 $11) 20... Kf7 {[%emt 0:00:42] [#]} 21. Qc2 $1 {[%emt 0:01:45][%mdl 64] Threatening mate with Qh7+.} Bf4+ {[%emt 0:03:52]} (21... Qa1+ 22. Kd2) 22. Bxf4 {[%emt 0:00:14]} Kxf6 {[%emt 0:00:03]} 23. Qc3 {[%emt 0:01:37]} (23. Bh6 $142 Qxc4 24. Qxc4 Kg6 25. Qc2+ Kxh6 26. Rf1 Kg5 27. Qh7 Nb4 28. Qg7+ Kh5 29. Rf6 Na2+ 30. Kd2 h3 31. Qh6#) 23... Kf7 {[%emt 0:02:01]} 24. Bg5 {[%emt 0:03:46]} (24. Bh6 $142 Qa1+ 25. Kd2 Qxd1+ 26. Kxd1) 24... Nc5 {[%emt 0:00:39]} 25. Qc2 {[%emt 0:01:49]} (25. Bxh4 Na4 26. Rf1+ Kg8 $11) 25... Kg7 {[%emt 0:01:23] Against Qh7+} 26. Re1 {[%emt 0:01:20] White threatens Re7+ and mate.} (26. Bxh4 Bd7 $11) 26... Bd7 {[%emt 0:01:09]} 27. Re7+ {[%emt 0:00:10]} ({Inferior is} 27. Bxh4 Re8 28. Kd2 Rxe1 29. Bxe1 b5 $15) 27... Kf8 {[%emt 0:00:04]} 28. Qf2+ {[%emt 0:00:07] Weighted Error Value: White=0.51/Black=1.01} ({Worse is} 28. Bxh4 Qa1+ 29. Kd2 Re8 $11) 1-0

[Event "16th Serbian-ch Women 2022"]
[Site "Bajina Basta"]
[Date "2022.12.14"]
[Round "9.1"]
[White "Vujcic, Milena"]
[Black "Eric, Jovana"]
[Result "0-1"]
[ECO "B99"]
[WhiteElo "2029"]
[BlackElo "2245"]
[Annotator "TA"]
[PlyCount "74"]
[EventDate "2022.12.06"]
[EventType "tourn"]
[EventCountry "SRB"]
[SourceTitle "playchess.com"]
[Source "ChessBase"]
[SourceQuality "1"]
[TimeControl "40/5400+30:1800+30"]

{[%evp 22,74,40,37,52,38,48,41,55,64,46,22,22,4,23,-28,-35,-204,-202,-283,-233,-334,-330,-481,-410,-429,-406,-495,-508,-466,-494,-787,-475,-591,-588,-581,-579,-627,-621,-677,-628,-631,-625,-1237,-1277,-1511,-1453,-1982,-1898,-5647,-5639,-29979,-29980,-29983,-5321]} 1. e4 {[%emt 0:00:03]} c5 {[%emt 0:00:09]} 2. Nf3 {[%emt 0:00:06]} d6 {[%emt 0:00:08]} 3. d4 {[%emt 0:00:06]} cxd4 {[%emt 0:00:05]} 4. Nxd4 {[%emt 0:00:04]} Nf6 {[%emt 0:00:05]} 5. Nc3 {[%emt 0:00:05]} a6 {[%emt 0:00:05]} 6. Bg5 {[%emt 0:00:05]} e6 {[%emt 0:00:12]} 7. f4 {[%emt 0:00:09]} Be7 {[%emt 0:00:14]} 8. Qf3 {[%emt 0:00:09]} Qc7 {[%emt 0:00:13]} 9. O-O-O {[%emt 0:00:09]} Nbd7 {[%emt 0:00:16]} 10. g4 {[%emt 0:00:06][%cal Bg2g4,Bg4g5][%mdl 32]} h6 {[%emt 0:00:22]} 11. Bxf6 {[%emt 0:00:11]} Bxf6 {[%emt 0:00:11]} 12. h4 {[%emt 0:01:38]} Nb6 $1 {[%emt 0:00:41][%mdl 4] now scores much better than the old 12...Qb6. B99: Sicilian Najdorf: 6 Bg5 e6 7 f4 Be7 8 Qf3 Qc7 9 0-0-0 Nbd7.} 13. g5 {[%emt 0:00:22]} (13. Be2 $5 {[%cal Rg4g5]}) 13... Bxd4 {[%emt 0:00:13]} 14. Rxd4 {[%emt 0:00:05]} Qc5 {[%emt 0:00:05] White is slightly better.} 15. Rd2 {[%emt 0:00:12]} Bd7 {[%emt 0:00:50]} 16. a3 {[%emt 0:04:51]} O-O-O {[%emt 0:03:19] [#]} 17. Rd3 $146 {[%emt 0:17:28]} ({Predecessor:} 17. Bd3 Bc6 18. Rg2 d5 19. e5 Nc4 20. gxh6 gxh6 21. Rg7 Nxa3 22. Rxf7 Nc4 23. Re1 Nxb2 24. Kxb2 d4 25. Be4 Qb4+ {0-1 (25) Kakabayaev,M (2285)-Suleymenov,A (2491) Delhi 2022}) 17... Kb8 {[%emt 0:06:53]} 18. Nb1 {[%emt 0:09:44]} (18. Qg3 $142) 18... d5 {[%emt 0:03:12][%cal Bd6d5,Bd5e4][%mdl 32]} 19. b4 $2 {[%emt 0:08:10] [#] This costs White the game.} ({White should play} 19. Qe3 $15 Qxe3+ 20. Rxe3) 19... Qc7 $1 $19 {[%emt 0:03:44] Threatens to win with ...dxe4.} 20. Rc3 {[%emt 0:09:21]} (20. e5 $142) 20... dxe4 {[%emt 0:02:42]} 21. Qf2 {[%emt 0:01:42]} (21. Rxc7 $142 exf3 22. Rc3) 21... Bc6 {[%emt 0:03:11][%cal Oe4e3] Strongly threatening ...e3!} 22. b5 {[%emt 0:03:11] Inhibits e3.} (22. Bg2 $142) 22... axb5 {[%emt 0:00:11]} 23. Bxb5 {[%emt 0:00:18]} Nd5 {[%emt 0:02:40]} 24. Bxc6 {[%emt 0:04:24]} Nxc3 {[%emt 0:00:41]} ({Weaker is} 24... bxc6 25. Rb3+ Kc8 26. Nc3 $17) 25. Nxc3 {[%emt 0:00:39]} Qxc6 {[%emt 0:00:05]} (25... bxc6 $2 {perishes.} 26. Kb2 $19) 26. Qe3 {[%emt 0:00:25]} (26. Rh3 $142) 26... Rc8 {[%emt 0:00:54]} 27. Kb2 {[%emt 0:00:20]} f5 {[%emt 0:01:29]} 28. gxf6 {[%emt 0:00:05]} gxf6 {[%emt 0:00:04]} 29. Rh2 {[%emt 0:00:32]} f5 {[%emt 0:00:11]} 30. a4 {[%emt 0:00:16]} Rhg8 {[%emt 0:02:05]} 31. Nb5 {[%emt 0:01:14][%csl Gb5][%cal Re3a7] [#]} Qc5 {[%emt 0:00:36] Inhibits Qa7+.} 32. Qb3 {[%emt 0:01:21]} e5 {[%emt 0:03:54]} 33. Rd2 {[%emt 0:00:44]} Rgd8 {[%emt 0:00:33]} 34. Rxd8 {[%emt 0:01:06]} Rxd8 {[%emt 0:00:05]} 35. fxe5 {[%emt 0:01:39]} Qxe5+ {[%emt 0:00:06]} 36. Ka2 {[%emt 0:00:09]} e3 {[%emt 0:00:47]} 37. Qb4 {[%emt 0:00:22]} Rc8 {[%emt 0:02:54] Weighted Error Value: White=1.04/Black=0.24 (precise)} (37... e2 $142 38. Qa5 Rd1 39. Qa7+ Kc8 40. Qa8+ Kd7 41. Qxb7+ Kd8 42. Qb6+ Ke7 43. Qf2 Qa1+ 44. Kb3 Rb1+ 45. Kc4 Qxa4+ 46. Kc3 e1=Q+ 47. Qxe1+ Rxe1 48. Kd2 Re4 49. c4 Qa2+ 50. Kc3 Qxc4+ 51. Kb2 Re2+ 52. Kb1 Qe4+ 53. Kc1 Qh1#) 0-1

[Event "16th Serbian-ch Women 2022"]
[Site "Bajina Basta"]
[Date "2022.12.14"]
[Round "9.2"]
[White "Chelushkina, Irina"]
[Black "Bojicic, Andjela"]
[Result "1/2-1/2"]
[ECO "B08"]
[WhiteElo "2173"]
[BlackElo "2117"]
[Annotator "TA"]
[PlyCount "34"]
[EventDate "2022.12.06"]
[EventType "tourn"]
[EventCountry "SRB"]
[SourceTitle "playchess.com"]
[Source "ChessBase"]
[SourceQuality "1"]
[TimeControl "40/5400+30:1800+30"]

{[%evp 16,20,35,37,40,11,37]} 1. e4 {[%emt 0:00:02]} g6 {[%emt 0:00:04]} 2. d4 {[%emt 0:00:05]} Bg7 {[%emt 0:00:04]} 3. Nc3 {[%emt 0:00:02]} d6 {[%emt 0:00:04]} 4. Nf3 {[%emt 0:00:02]} Nf6 {[%emt 0:00:05]} 5. Be2 {[%emt 0:00:02]} O-O {[%emt 0:00:05]} 6. O-O {[%emt 0:00:02]} c6 {[%emt 0:00:05]} 7. a4 {[%emt 0:00:05]} Qc7 {[%emt 0:00:04]} 8. Re1 {[%emt 0:00:08]} Nbd7 {[%emt 0:00:05]} 9. h3 {[%emt 0:00:04]} b6 {[%emt 0:00:06] B08: Pirc Defence: Classical System.} 10. Be3 {[%emt 0:00:04]} Bb7 {[%emt 0:00:04] [#] A rather calm draw.} {Predecessor:} 11. Qd2 $146 Rfd8 12. Rad1 a6 13. Bh6 b5 14. Bxg7 Kxg7 15. axb5 cxb5 16. Bd3 e5 17. d5 Nc5 {1-0 (53) Niemann,H (2642)-Kushko,D (2302) Chess.com INT 2022} 1/2-1/2

[Event "16th Serbian-ch Women 2022"]
[Site "Bajina Basta"]
[Date "2022.12.14"]
[Round "9.3"]
[White "Gajcin, Marina"]
[Black "Dimitrijevic, Andjela"]
[Result "1-0"]
[ECO "B52"]
[WhiteElo "2219"]
[BlackElo "1993"]
[Annotator "TA"]
[PlyCount "101"]
[EventDate "2022.12.06"]
[EventType "tourn"]
[EventCountry "SRB"]
[SourceTitle "playchess.com"]
[Source "ChessBase"]
[SourceQuality "1"]
[TimeControl "40/5400+30:1800+30"]

{[%evp 13,100,19,29,4,11,9,22,20,42,16,18,-6,0,0,6,0,0,-9,0,-16,-16,-17,0,-16,-12,-20,12,-66,-5,-21,1,4,3,6,16,0,37,0,0,-4,9,-35,-24,-25,0,0,0,8,40,28,41,40,55,50,45,46,32,-17,63,22,89,78,218,208,216,211,215,210,214,211,321,320,549,546,1653,1610,29991,29992,29992,29989,29989,2523,29994,29992,29995,29996,29998,29999,29999]} 1. e4 {[%emt 0:00:03]} c5 {[%emt 0:00:11]} 2. Nf3 {[%emt 0:00:09]} d6 {[%emt 0:00:15]} 3. Bb5+ {[%emt 0:00:09]} Bd7 {[%emt 0:00:08]} 4. Bxd7+ {[%emt 0:00:07]} Nxd7 {[%emt 0:00:09]} 5. c4 {[%emt 0:00:06]} Ngf6 {[%emt 0:04:45]} 6. Nc3 {[%emt 0:00:22]} g6 {[%emt 0:01:54]} 7. O-O {[%emt 0:03:16]} Bg7 {[%emt 0:00:15]} 8. h3 {[%emt 0:00:26] B52: Sicilian: Moscow Variation with 3...Bd7.} O-O {[%emt 0:05:45]} 9. d3 {[%emt 0:00:54] [#]} e6 $146 {[%emt 0:17:02]} ({Predecessor:} 9... a6 10. Be3 Rb8 11. d4 cxd4 12. Nxd4 Rc8 13. Qe2 Qc7 14. Rac1 Qxc4 15. Nd5 Qxe2 16. Nxe7+ {½-½ (65) Yuan,Q (2373)-Wachinger,G (2215) Chess.com INT 2022}) 10. Bf4 {[%emt 0:16:49] The position is equal.} Ne8 {[%emt 0:01:47]} 11. Qd2 {[%emt 0:04:50]} (11. Bg5 $5 {[%cal Rg5d8]} Nef6 12. Qd2 $11) 11... Ne5 {[%emt 0:04:59]} 12. Nh2 {[%emt 0:06:59]} Nc7 {[%emt 0:04:59]} 13. Bg5 {[%emt 0:10:44]} f6 {[%emt 0:16:49]} 14. Be3 {[%emt 0:04:52]} Nc6 {[%emt 0:00:20]} 15. Ne2 {[%emt 0:09:47]} f5 {[%emt 0:09:43]} 16. f4 {[%emt 0:02:18]} Qf6 {[%emt 0:06:12]} 17. Rab1 {[%emt 0:08:07]} b6 {[%emt 0:00:34]} 18. Nf3 {[%emt 0:07:14]} Rad8 {[%emt 0:00:23]} 19. Bf2 {[%emt 0:05:33]} Rd7 {[%emt 0:01:44]} 20. Qe1 {[%emt 0:00:42]} ({White should play} 20. Qd1 $11) 20... Re8 {[%emt 0:01:38]} (20... e5 $15) 21. a3 $11 {[%emt 0:02:31]} a5 {[%emt 0:00:39]} 22. Qd1 {[%emt 0:03:46] Threatening Qa4.} Qd8 {[%emt 0:00:22]} 23. Qa4 {[%emt 0:00:26]} Qa8 {[%emt 0:00:27]} 24. Nc3 {[%emt 0:04:04]} Rdd8 {[%emt 0:02:22]} 25. Bh4 {[%emt 0:02:26] [#] Strongly threatening exf5.} Rb8 {[%emt 0:01:33]} 26. Kh1 {[%emt 0:00:55]} Qb7 {[%emt 0:02:06]} 27. Qd1 {[%emt 0:04:01]} Nd4 {[%emt 0:10:48]} 28. a4 {[%emt 0:00:23]} Na6 {[%emt 0:01:22]} 29. Nxd4 {[%emt 0:00:47]} cxd4 {[%emt 0:00:44]} 30. Nb5 {[%emt 0:00:05]} Qc6 {[%emt 0:00:53]} 31. exf5 {[%emt 0:01:22]} exf5 {[%emt 0:02:19]} 32. Bf2 {[%emt 0:00:14]} Nc5 {[%emt 0:00:15]} 33. Nxd4 {[%emt 0:00:46]} Qxa4 {[%emt 0:00:09]} 34. Qf3 {[%emt 0:00:09]} Qd7 {[%emt 0:01:28]} 35. Nb5 {[%emt 0:01:06]} (35. b4 $14 axb4 36. Nc6) 35... Kh8 {[%emt 0:01:25]} (35... d5 $11) 36. Qd5 {[%emt 0:00:23]} (36. b4 $5 {[%cal Rb4c5]} Ne6 37. bxa5 bxa5 38. g3 $14) 36... Rbd8 {[%emt 0:00:34]} (36... Qe6 $11 {keeps the balance.}) 37. Bh4 {[%emt 0:00:17]} Na6 {[%emt 0:00:53] Loses the game.} 38. Bxd8 $18 {[%emt 0:00:14]} Rxd8 {[%emt 0:00:02]} 39. Rfe1 {[%emt 0:00:31][%cal Ob5d6] [#] aiming for Nxd6!} Nb4 {[%emt 0:00:30]} 40. Qf3 {[%emt 0:01:54]} d5 {[%emt 0:01:15]} 41. Re2 {[%emt 0:08:21]} d4 {[%emt 0:24:52]} (41... Kg8 $142 42. Kh2 Bh6) 42. Rbe1 {[%emt 0:03:41] Hoping for Re7.} Bf6 {[%emt 0:01:03] Against Re7} (42... Bf8 {was necessary.} 43. Re6 Bc5) 43. Re6 {[%emt 0:02:36]} Qg7 {[%emt 0:01:13]} 44. Re8+ {[%emt 0:00:14]} Rxe8 {[%emt 0:00:09]} 45. Rxe8+ {[%emt 0:00:02]} Qg8 {[%emt 0:00:09]} 46. Rxg8+ {[%emt 0:00:15]} Kxg8 {[%emt 0:00:02]} 47. Nd6 {[%emt 0:00:24]} (47. Qb7 $142 Kf8 48. Qxb6 Be7 49. Qxd4 Nc6 50. Qd7 Nb8 51. Qb7 a4 52. Qxb8+ Kf7 53. Qc8) 47... Bg7 {[%emt 0:00:54]} 48. Qa8+ {[%emt 0:00:25] White mates.} Bf8 {[%emt 0:00:07]} 49. Qe8 {[%emt 0:00:06]} Nxd3 {[%emt 0:00:34]} 50. Qf7+ {[%emt 0:00:06]} Kh8 {[%emt 0:00:03]} 51. Qxf8# {[%emt 0:00:03] Weighted Error Value: White=0.12 (very precise) /Black=0.58} 1-0

[Event "16th Serbian-ch Women 2022"]
[Site "Bajina Basta"]
[Date "2022.12.14"]
[Round "9.4"]
[White "Manakova, Maria"]
[Black "Grozdanovic, Anastasia"]
[Result "1/2-1/2"]
[ECO "D12"]
[WhiteElo "2160"]
[BlackElo "1870"]
[Annotator "TA"]
[PlyCount "117"]
[EventDate "2022.12.06"]
[EventType "tourn"]
[EventCountry "SRB"]
[SourceTitle "playchess.com"]
[Source "ChessBase"]
[SourceQuality "1"]
[TimeControl "40/5400+30:1800+30"]

{[%evp 9,117,0,14,0,4,-30,7,0,31,0,37,42,44,44,52,-6,34,32,154,11,20,7,9,-17,-20,-12,40,39,45,47,45,33,31,0,71,69,106,104,107,99,96,96,96,91,96,92,114,114,101,97,150,111,115,116,185,185,185,180,187,188,183,184,171,128,128,128,128,130,128,129,136,128,141,141,141,129,128,128,145,145,140,143,304,268,292,228,312,295,295,216,213,185,747,737,694,192,220,0,0,0,0,0,0,0,0,0,0,0,0,0]} 1. d4 {[%emt 0:00:03]} d5 {[%emt 0:00:14]} 2. Nf3 {[%emt 0:00:04]} Nf6 {[%emt 0:00:10]} 3. e3 {[%emt 0:00:03]} Bf5 {[%emt 0:00:06]} 4. c4 {[%emt 0:03:45]} c6 {[%emt 0:00:25]} 5. Nbd2 {[%emt 0:02:02]} h6 {[%emt 0:03:00]} 6. cxd5 {[%emt 0:03:34] D12: Slav Defence: 3 Nf3 Nf6 4 e3 Bf5.} cxd5 {[%emt 0:00:46] [#]} 7. Qa4+ $146 {[%emt 0:00:59]} (7. Ne5 $5 {[%cal Re3e4]}) ({Predecessor:} 7. Qb3 Qb6 8. Qxb6 axb6 9. Ne5 Nfd7 10. Bd3 Bxd3 11. Nxd3 {½-½ (53) Burger,H (2060)-Roeder,G (2095) Berlin 2012}) 7... Nc6 {[%emt 0:04:34]} (7... Nbd7 {simplifies} 8. Qb3 Qc7 9. Bd3 Bxd3 10. Qxd3 Rc8) 8. Ne5 {[%emt 0:02:11][%cal Of1b5]} Qb6 {[%emt 0:00:56]} 9. Bb5 {[%emt 0:03:57]} Rc8 {[%emt 0:01:44]} 10. Nb3 {[%emt 0:03:06]} a6 {[%emt 0:10:49]} 11. Bxc6+ {[%emt 0:00:53]} bxc6 {[%emt 0:00:05]} 12. Nc5 {[%emt 0:01:56]} (12. Bd2 $14) 12... e6 {[%emt 0:00:16]} (12... Ne4 {with more complications.} 13. b4 f6 14. Ned3 e5) 13. Qxa6 {[%emt 0:04:45]} Qc7 {[%emt 0:04:01]} (13... Qxa6 $14 14. Nxa6 Bd6) 14. Ncd3 {[%emt 0:23:55] Pair of Knights!} (14. Bd2 $1 $16) 14... Bd6 $11 {[%emt 0:05:51] Threatens to win with ...0-0.} 15. Bd2 {[%emt 0:00:31]} O-O {[%emt 0:03:08] Hoping for ...Ra8.} 16. Qa5 {[%emt 0:09:06]} (16. Rc1 {keeps more tension.} c5 17. Nxc5 Ra8 18. Qb7) 16... Qb7 {[%emt 0:02:57]} 17. f3 {[%emt 0:19:44] Inhibits Ne4.} Bxe5 {[%emt 0:11:17]} (17... Nh7 $11 18. Nc5 Bxc5 19. Qxc5 f6) 18. Nxe5 $14 {[%emt 0:00:13]} Qxb2 {[%emt 0:00:51]} 19. Qc3 {[%emt 0:00:22]} Qb7 {[%emt 0:06:46]} 20. Qb4 {[%emt 0:04:11]} (20. O-O {simplifies} Nd7 21. Nxd7 Qxd7 22. Rfc1) 20... Qa6 {[%emt 0:02:16]} 21. Qc5 {[%emt 0:03:37]} Qb7 {[%emt 0:04:13]} (21... Rc7 $11) 22. O-O $16 {[%emt 0:02:13]} Nd7 {[%emt 0:00:31]} 23. Qe7 {[%emt 0:00:25]} f6 {[%emt 0:04:09]} 24. Qxd7 {[%emt 0:04:23] White is much more active.} (24. Nxd7 {simplifies} Rf7 25. Nxf6+ gxf6 26. Qd6) 24... Rc7 {[%emt 0:00:13]} 25. Qd6 {[%emt 0:00:17][%cal Oe3e4] Black must now prevent e4!} fxe5 {[%emt 0:00:28]} 26. Qxe5 {[%emt 0:00:29]} Rcf7 {[%emt 0:02:24]} 27. Bc3 {[%emt 0:01:57] Prevents Qb2.} Qd7 {[%emt 0:01:35]} 28. Bb4 $36 {[%emt 0:00:18][%mdl 2048] Black is under strong pressure.} Ra8 {[%emt 0:01:21]} 29. e4 {[%emt 0:00:54]} Bh7 {[%emt 0:01:29]} (29... Bg6 $142) 30. a3 {[%emt 0:00:07]} Rf6 {[%emt 0:04:40]} 31. Bc5 {[%emt 0:00:26]} Qf7 {[%emt 0:01:00]} (31... Bg6 $16 {might work better.} 32. Rfb1 dxe4) 32. Rab1 $1 $18 {[%emt 0:00:05] Rb8+ is the strong threat.} Bg6 {[%emt 0:00:49] [#]} 33. Rb8+ $1 {[%emt 0:01:13]} Rxb8 {[%emt 0:00:07]} 34. Qxb8+ {[%emt 0:00:01]} Kh7 {[%emt 0:00:20] [#]} 35. e5 {[%emt 0:00:26]} Rf4 {[%emt 0:00:40]} 36. a4 {[%emt 0:02:14][%cal Ba3a4,Ba4a5][%mdl 32]} Bd3 {[%emt 0:02:48]} 37. Rf2 {[%emt 0:00:03]} Qg6 {[%emt 0:03:23]} 38. Qb2 {[%emt 0:00:46]} Rf7 {[%emt 0:01:04]} 39. a5 {[%emt 0:00:57]} Bb5 {[%emt 0:03:32]} 40. Bb6 {[%emt 0:02:05]} Kh8 {[%emt 0:02:30]} 41. Qc2 {[%emt 0:07:21]} Qg5 {[%emt 0:04:34]} 42. Qd2 {[%emt 0:08:19]} Qf5 {[%emt 0:03:40] ( -> ...Qb1+)} 43. h3 {[%emt 0:00:17]} Qb1+ {[%emt 0:05:52]} 44. Kh2 {[%emt 0:00:05]} Rf8 {[%emt 0:00:23]} 45. Bc5 {[%emt 0:01:40]} Rf5 {[%emt 0:01:58]} (45... Rf7 $16 46. Qa2 Qxa2 47. Rxa2 Ba6) 46. Qa2 {[%emt 0:04:37]} Qd3 {[%emt 0:02:08]} 47. Rb2 {[%emt 0:01:02][%cal Ob2b5] Strongly threatening Rxb5!} Bc4 {[%emt 0:03:19]} 48. Qb1 {[%emt 0:02:24]} Qe3 {[%emt 0:01:15]} 49. Rb8+ {[%emt 0:00:23]} Kh7 {[%emt 0:00:05]} 50. Kh1 {[%emt 0:02:53]} Be2 $2 {[%emt 0:04:13]} (50... Qe2 51. Rb2 Qe3) 51. Rb3 {[%emt 0:00:38]} Qf4 {[%emt 0:02:58]} 52. Ra3 $2 {[%emt 0:01:08]} (52. Qc2 Bf1 53. g4) 52... Ba6 {[%emt 0:03:14]} 53. g4 $2 {[%emt 0:04:41]} (53. Ra2 $18) 53... Be2 $1 $11 {[%emt 0:01:00][%mdl 64] The position is equal.} 54. gxf5 {[%emt 0:02:39]} Bxf3+ {[%emt 0:00:06]} 55. Rxf3 {[%emt 0:00:08]} Qxf3+ {[%emt 0:00:04]} 56. Kh2 {[%emt 0:00:20]} Qf2+ {[%emt 0:00:06]} 57. Kh1 {[%emt 0:00:04]} Qf3+ {[%emt 0:00:04]} 58. Kh2 {[%emt 0:00:47]} Qf2+ {[%emt 0:00:07]} 59. Kh1 {[%emt 0:00:03] Black defended with fortune.   Weighted Error Value: White=0.29 (precise) /Black=0.20 (precise)} 1/2-1/2